[Event "Live Chess"]
[Site "Chess.com"]
[Date "2024.06.02"]
[Round "-"]
[White "Bradfield133"]
[Black "ameetghasi100"]
[Result "0-1"]
[WhiteElo "1872"]
[BlackElo "2793"]
[TimeControl "300"]
[EndTime "2:34:38 PDT"]
[Termination "ameetghasi100 won by resignation"]

1. c4 {[%clk 0:04:57.9]} 1... c5 {[%clk 0:04:59.9]} 2. g3 {[%clk 0:04:54.9]}
2... g6 {[%clk 0:04:59.8]} 3. Bg2 {[%clk 0:04:53.1]} 3... Bg7 {[%clk 0:04:59.7]}
4. Nc3 {[%clk 0:04:50.1]} 4... Nh6 {[%clk 0:04:59.6]} 5. e3 {[%clk 0:04:37.1]}
5... Nc6 {[%clk 0:04:59]} 6. Nge2 {[%clk 0:04:36]} 6... Nf5 {[%clk 0:04:53.9]}
7. O-O {[%clk 0:04:32.1]} 7... h5 {[%clk 0:04:47.5]} 8. Rb1 {[%clk 0:04:17.8]}
8... h4 {[%clk 0:04:41.2]} 9. a3 {[%clk 0:04:12.4]} 9... hxg3 {[%clk 0:04:39.8]}
10. hxg3 {[%clk 0:04:09.6]} 10... d6 {[%clk 0:04:39.7]} 11. b4 {[%clk
0:04:05.9]} 11... Ne5 {[%clk 0:04:35.7]} 12. d3 {[%clk 0:04:00.9]} 12... cxb4
{[%clk 0:04:30.1]} 13. axb4 {[%clk 0:03:58.8]} 13... Ng4 {[%clk 0:04:28.2]} 14.
Nf4 {[%clk 0:03:50]} 14... Bxc3 {[%clk 0:04:22.6]} 15. Qxg4 {[%clk 0:03:43.8]}
15... Nxe3 {[%clk 0:04:21.8]} 16. Qf3 {[%clk 0:03:37.2]} 16... Nxg2 {[%clk
0:04:17]} 17. Kxg2 {[%clk 0:03:32.8]} 17... g5 {[%clk 0:04:14.2]} 18. Nd5 {[%clk
0:03:29.9]} 18... Bh3+ {[%clk 0:04:11]} 19. Kg1 {[%clk 0:03:20.5]} 19... Bxf1
{[%clk 0:04:09]} 20. Nxc3 {[%clk 0:03:04.9]} 20... Bh3 {[%clk 0:03:56.9]} 21.
Qxb7 {[%clk 0:02:50.7]} 21... f6 {[%clk 0:03:52.2]} 22. Nd5 {[%clk 0:02:47.3]}
22... Bg4 {[%clk 0:03:41.1]} 23. Qxa8 {[%clk 0:02:45]} 23... Qxa8 {[%clk
0:03:39]} 24. Nc7+ {[%clk 0:02:44.1]} 24... Kd7 {[%clk 0:03:38.5]} 25. Nxa8
{[%clk 0:02:42.9]} 25... Bf3 {[%clk 0:03:38.2]} 0-1

[Event "Live Chess"]
[Site "Chess.com"]
[Date "2024.06.02"]
[Round "-"]
[White "Duke_of_Bebington"]
[Black "upoe610"]
[Result "0-1"]
[WhiteElo "1637"]
[BlackElo "2142"]
[TimeControl "300"]
[EndTime "2:34:48 PDT"]
[Termination "upoe610 won by resignation"]

1. e4 {[%clk 0:04:57]} 1... e5 {[%clk 0:04:57.8]} 2. Nf3 {[%clk 0:04:55.7]} 2...
Nc6 {[%clk 0:04:57]} 3. Bc4 {[%clk 0:04:54.8]} 3... Nf6 {[%clk 0:04:54.8]} 4.
O-O {[%clk 0:04:52.6]} 4... Nxe4 {[%clk 0:04:53.2]} 5. Bd5 {[%clk 0:04:40.8]}
5... Nf6 {[%clk 0:04:51.2]} 6. Bxc6 {[%clk 0:04:39.3]} 6... dxc6 {[%clk
0:04:51.1]} 7. Nxe5 {[%clk 0:04:37.5]} 7... Bd6 {[%clk 0:04:51]} 8. d4 {[%clk
0:04:33]} 8... O-O {[%clk 0:04:49.9]} 9. Bg5 {[%clk 0:04:22.1]} 9... h6 {[%clk
0:04:43.7]} 10. Bh4 {[%clk 0:04:20.6]} 10... c5 {[%clk 0:04:42.1]} 11. c3 {[%clk
0:04:18.3]} 11... cxd4 {[%clk 0:04:33.6]} 12. Qxd4 {[%clk 0:04:12.9]} 12... Re8
{[%clk 0:04:28.3]} 13. f4 {[%clk 0:04:00]} 13... c5 {[%clk 0:04:26.3]} 14. Qf2
{[%clk 0:03:51.6]} 14... Bxe5 {[%clk 0:04:23.3]} 15. fxe5 {[%clk 0:03:49.7]}
15... Rxe5 {[%clk 0:04:23]} 16. Bxf6 {[%clk 0:03:48.1]} 16... Qxf6 {[%clk
0:04:21.8]} 17. Qxf6 {[%clk 0:03:47]} 17... gxf6 {[%clk 0:04:21.3]} 18. Rxf6
{[%clk 0:03:45.8]} 18... Kg7 {[%clk 0:04:20.2]} 19. Rf1 {[%clk 0:03:43.7]} 19...
Re2 {[%clk 0:04:15.7]} 20. Rf2 {[%clk 0:03:41]} 20... Re1+ {[%clk 0:04:13.6]}
21. Rf1 {[%clk 0:03:40.1]} 21... Rxf1+ {[%clk 0:04:12.9]} 22. Kxf1 {[%clk
0:03:39]} 22... Be6 {[%clk 0:04:11.9]} 23. Nd2 {[%clk 0:03:35.2]} 23... Rd8
{[%clk 0:04:10.4]} 24. Ne4 {[%clk 0:03:29.1]} 24... b6 {[%clk 0:04:07.3]} 25. b3
{[%clk 0:03:27.5]} 25... Bf5 {[%clk 0:04:05.3]} 26. Re1 {[%clk 0:03:23.7]} 26...
Re8 {[%clk 0:03:58]} 27. Nd2 {[%clk 0:03:17.4]} 27... Bd3+ {[%clk 0:03:55.2]}
28. Kf2 {[%clk 0:03:14.8]} 28... Rd8 {[%clk 0:03:53.3]} 29. Nf3 {[%clk
0:02:58.5]} 29... c4 {[%clk 0:03:49.2]} 30. Nd4 {[%clk 0:02:53.3]} 30... cxb3
{[%clk 0:03:44.8]} 31. axb3 {[%clk 0:02:53.2]} 31... Rc8 {[%clk 0:03:40.6]} 32.
c4 {[%clk 0:02:49.9]} 32... Rd8 {[%clk 0:03:38.9]} 33. Nc6 {[%clk 0:02:44.1]}
33... Ra8 {[%clk 0:03:34.5]} 34. Re7 {[%clk 0:02:41.5]} 34... a5 {[%clk
0:03:32.6]} 35. Ne5 {[%clk 0:02:39.5]} 35... Kf6 {[%clk 0:03:29.3]} 36. Nc6
{[%clk 0:02:36.2]} 36... Rc8 {[%clk 0:03:22.1]} 37. Rd7 {[%clk 0:02:30.7]} 37...
Rxc6 {[%clk 0:03:15.8]} 38. Rxd3 {[%clk 0:02:28.5]} 38... a4 {[%clk 0:03:15.3]}
39. bxa4 {[%clk 0:02:20.1]} 39... Rxc4 {[%clk 0:03:13.8]} 40. Rb3 {[%clk
0:02:14.8]} 40... Rc6 {[%clk 0:03:10.6]} 41. Rb5 {[%clk 0:02:10.2]} 41... Ke6
{[%clk 0:03:08.8]} 42. h3 {[%clk 0:02:00]} 42... Kd7 {[%clk 0:03:07.6]} 43. Rf5
{[%clk 0:01:53]} 43... Ke6 {[%clk 0:03:02.4]} 44. Rb5 {[%clk 0:01:52.1]} 44...
Kf6 {[%clk 0:02:54.9]} 45. Kg3 {[%clk 0:01:46.9]} 45... Kg6 {[%clk 0:02:54.2]}
46. Kh4 {[%clk 0:01:44.6]} 46... Rc4+ {[%clk 0:02:51.5]} 47. g4 {[%clk
0:01:42.4]} 47... Rxa4 {[%clk 0:02:49.6]} 48. Rxb6+ {[%clk 0:01:41.7]} 48... f6
{[%clk 0:02:49]} 49. Rb8 {[%clk 0:01:37.2]} 49... Kg7 {[%clk 0:02:39.4]} 50. Rb5
{[%clk 0:01:35.2]} 50... Ra3 {[%clk 0:02:37.7]} 51. Rf5 {[%clk 0:01:31.5]} 51...
Kg6 {[%clk 0:02:36]} 52. Rh5 {[%clk 0:01:29.4]} 52... Ra8 {[%clk 0:02:29.7]} 53.
Rf5 {[%clk 0:01:27.8]} 53... Rg8 {[%clk 0:02:28.3]} 54. Rh5 {[%clk 0:01:25.3]}
54... Kh7 {[%clk 0:02:26.8]} 55. Rf5 {[%clk 0:01:23.9]} 55... Rg6 {[%clk
0:02:25]} 56. Kg3 {[%clk 0:01:22.2]} 56... Kg7 {[%clk 0:02:23.9]} 57. Kf4 {[%clk
0:01:20.1]} 57... Kf7 {[%clk 0:02:19.4]} 58. h4 {[%clk 0:01:13.6]} 58... Rg8
{[%clk 0:02:16.6]} 59. Rd5 {[%clk 0:01:10.8]} 59... Ra8 {[%clk 0:02:09.3]} 60.
Kf5 {[%clk 0:01:08.8]} 60... Ra7 {[%clk 0:02:07.6]} 61. Rd6 {[%clk 0:01:07.5]}
61... Kg7 {[%clk 0:02:04.1]} 62. Kf4 {[%clk 0:00:59]} 62... Ra4+ {[%clk
0:02:02.3]} 63. Kg3 {[%clk 0:00:57.9]} 63... Kg6 {[%clk 0:01:55.8]} 64. h5+
{[%clk 0:00:56.7]} 64... Kf7 {[%clk 0:01:54.9]} 65. Rd7+ {[%clk 0:00:55.3]}
65... Kg8 {[%clk 0:01:45.9]} 66. Rd8+ {[%clk 0:00:54.1]} 66... Kg7 {[%clk
0:01:45.2]} 67. Rd7+ {[%clk 0:00:53.5]} 67... Kg8 {[%clk 0:01:42.9]} 68. Rd8+
{[%clk 0:00:49.1]} 68... Kf7 {[%clk 0:01:42.3]} 69. Rd7+ {[%clk 0:00:48.4]}
69... Ke6 {[%clk 0:01:39.9]} 70. Rh7 {[%clk 0:00:47.5]} 70... Ra3+ {[%clk
0:01:38.2]} 71. Kh4 {[%clk 0:00:44.5]} 71... Ra1 {[%clk 0:01:35.8]} 72. Rxh6
{[%clk 0:00:43.9]} 72... Rh1+ {[%clk 0:01:33.6]} 73. Kg3 {[%clk 0:00:43.4]}
73... Rg1+ {[%clk 0:01:32.7]} 74. Kf3 {[%clk 0:00:42.6]} 74... Rf1+ {[%clk
0:01:31.4]} 75. Kg2 {[%clk 0:00:41.6]} 75... Ra1 {[%clk 0:01:30.4]} 76. Rg6
{[%clk 0:00:40.4]} 76... Ke5 {[%clk 0:01:26.7]} 77. h6 {[%clk 0:00:39.4]} 77...
Ra2+ {[%clk 0:01:22.7]} 78. Kf3 {[%clk 0:00:37.7]} 78... Ra3+ {[%clk 0:01:21.8]}
79. Ke2 {[%clk 0:00:37]} 79... Rh3 {[%clk 0:01:19.8]} 80. Kf2 {[%clk 0:00:34.7]}
80... Ke6 {[%clk 0:01:08.9]} 81. Kg2 {[%clk 0:00:33]} 81... Rh4 {[%clk
0:01:07.5]} 82. Kg3 {[%clk 0:00:32.1]} 82... Rh1 {[%clk 0:01:06.3]} 83. Kg2
{[%clk 0:00:31.2]} 83... Rh4 {[%clk 0:01:04.7]} 84. Kg3 {[%clk 0:00:30.1]} 84...
Rh1 {[%clk 0:01:03]} 85. g5 {[%clk 0:00:24]} 85... Kf5 {[%clk 0:00:56.6]} 86.
Rxf6+ {[%clk 0:00:21.3]} 86... Kxg5 {[%clk 0:00:55.7]} 87. Rd6 {[%clk
0:00:19.2]} 87... Ra1 {[%clk 0:00:52.4]} 88. Kf2 {[%clk 0:00:18.3]} 88... Ra7
{[%clk 0:00:49.8]} 89. Ke3 {[%clk 0:00:16.1]} 89... Kf5 {[%clk 0:00:48.3]} 90.
Kd4 {[%clk 0:00:15.6]} 90... Ra4+ {[%clk 0:00:45.3]} 91. Kc5 {[%clk 0:00:14.6]}
91... Ra5+ {[%clk 0:00:44.7]} 92. Kb6 {[%clk 0:00:13.8]} 92... Ra1 {[%clk
0:00:43.8]} 93. Kc7 {[%clk 0:00:13.1]} 93... Ke5 {[%clk 0:00:40.5]} 94. Kd7
{[%clk 0:00:11.3]} 94... Ra7+ {[%clk 0:00:38.8]} 95. Kc6 {[%clk 0:00:09.6]}
95... Ra6+ {[%clk 0:00:38.1]} 96. Kc7 {[%clk 0:00:08.6]} 96... Rxd6 {[%clk
0:00:37.3]} 97. h7 {[%clk 0:00:08.2]} 97... Rh6 {[%clk 0:00:37.1]} 98. h8=Q+
{[%clk 0:00:07.3]} 98... Rxh8 {[%clk 0:00:36.4]} 0-1

[Event "Live Chess"]
[Site "Chess.com"]
[Date "2024.06.02"]
[Round "-"]
[White "juniortay"]
[Black "matt1979"]
[Result "1-0"]
[WhiteElo "2371"]
[BlackElo "1406"]
[TimeControl "300"]
[EndTime "2:34:55 PDT"]
[Termination "juniortay won by checkmate"]

1. e4 {[%clk 0:04:57.2]} 1... d6 {[%clk 0:04:57.4]} 2. Nc3 {[%clk 0:04:55.8]}
2... Nf6 {[%clk 0:04:55.7]} 3. f4 {[%clk 0:04:55.7]} 3... e5 {[%clk 0:04:51]} 4.
Nf3 {[%clk 0:04:55]} 4... Nbd7 {[%clk 0:04:49.2]} 5. Bc4 {[%clk 0:04:50.9]} 5...
Be7 {[%clk 0:04:47.6]} 6. d3 {[%clk 0:04:49.9]} 6... O-O {[%clk 0:04:46.1]} 7.
O-O {[%clk 0:04:48.8]} 7... c6 {[%clk 0:04:45.2]} 8. a4 {[%clk 0:04:47.4]} 8...
Qc7 {[%clk 0:04:44.1]} 9. Kh1 {[%clk 0:04:45.6]} 9... b6 {[%clk 0:04:39.4]} 10.
fxe5 {[%clk 0:04:38.3]} 10... dxe5 {[%clk 0:04:37.2]} 11. Qe1 {[%clk 0:04:37]}
11... Bb7 {[%clk 0:04:33.6]} 12. Nh4 {[%clk 0:04:35.4]} 12... Bc8 {[%clk
0:04:21.5]} 13. Nf5 {[%clk 0:04:33.2]} 13... Nc5 {[%clk 0:04:18.4]} 14. Nxe7+
{[%clk 0:04:31]} 14... Qxe7 {[%clk 0:04:17]} 15. Bg5 {[%clk 0:04:30]} 15... Ncd7
{[%clk 0:04:13.3]} 16. Qh4 {[%clk 0:04:26.4]} 16... h6 {[%clk 0:04:06.1]} 17.
Bxh6 {[%clk 0:04:24.9]} 17... gxh6 {[%clk 0:04:03.8]} 18. Qxh6 {[%clk 0:04:24]}
18... a6 {[%clk 0:03:50.7]} 19. Rf3 {[%clk 0:03:46.4]} 19... Nh7 {[%clk
0:03:28.4]} 20. Rg3+ {[%clk 0:03:37.3]} 20... Kh8 {[%clk 0:03:27.1]} 21. Qg7#
{[%clk 0:03:35.6]} 1-0

[Event "Live Chess"]
[Site "Chess.com"]
[Date "2024.06.02"]
[Round "-"]
[White "Mikhail_Golubev"]
[Black "Crowded_House"]
[Result "1-0"]
[WhiteElo "2511"]
[BlackElo "1673"]
[TimeControl "300"]
[EndTime "2:35:07 PDT"]
[Termination "Mikhail_Golubev won by resignation"]

1. e4 {[%clk 0:04:57.7]} 1... e6 {[%clk 0:04:58.3]} 2. d4 {[%clk 0:04:54.9]}
2... d5 {[%clk 0:04:57.7]} 3. e5 {[%clk 0:04:54.5]} 3... c5 {[%clk 0:04:55.8]}
4. c3 {[%clk 0:04:49.9]} 4... Nc6 {[%clk 0:04:54.5]} 5. Nf3 {[%clk 0:04:45.2]}
5... Qb6 {[%clk 0:04:53.9]} 6. Bd3 {[%clk 0:04:43.5]} 6... Bd7 {[%clk
0:04:52.5]} 7. O-O {[%clk 0:04:41.8]} 7... cxd4 {[%clk 0:04:48.8]} 8. Nbd2
{[%clk 0:04:40.6]} 8... dxc3 {[%clk 0:04:42.8]} 9. bxc3 {[%clk 0:04:39.3]} 9...
Bc5 {[%clk 0:04:29]} 10. Nb3 {[%clk 0:04:29.3]} 10... a6 {[%clk 0:04:16.7]} 11.
Rb1 {[%clk 0:04:27.5]} 11... Qa7 {[%clk 0:04:15.8]} 12. Nxc5 {[%clk 0:04:21.7]}
12... Qxc5 {[%clk 0:04:13.9]} 13. Rxb7 {[%clk 0:04:20.9]} 13... Nge7 {[%clk
0:04:00.6]} 14. Qc2 {[%clk 0:02:27.3]} 14... Rb8 {[%clk 0:03:54.9]} 15. Be3
{[%clk 0:02:10.8]} 15... Qa5 {[%clk 0:03:47.1]} 16. Bb6 {[%clk 0:01:44.7]} 16...
Qa3 {[%clk 0:03:33.5]} 17. Rxb8+ {[%clk 0:01:43.3]} 17... Nxb8 {[%clk
0:03:31.6]} 18. Bc7 {[%clk 0:01:42.7]} 18... Nbc6 {[%clk 0:03:21.8]} 19. Bd6
{[%clk 0:01:40.6]} 19... O-O {[%clk 0:03:19.5]} 20. Bxa3 {[%clk 0:01:38.1]} 1-0

[Event "Live Chess"]
[Site "Chess.com"]
[Date "2024.06.02"]
[Round "-"]
[White "nitrofish07"]
[Black "A3ndrey9"]
[Result "1-0"]
[WhiteElo "2078"]
[BlackElo "1293"]
[TimeControl "300"]
[EndTime "2:35:09 PDT"]
[Termination "nitrofish07 won on time"]

1. e4 {[%clk 0:04:57.3]} 1... c6 {[%clk 0:04:59.9]} 2. d4 {[%clk 0:04:56]} 2...
d5 {[%clk 0:04:59.8]} 3. Nc3 {[%clk 0:04:54]} 3... dxe4 {[%clk 0:04:58.7]} 4.
Nxe4 {[%clk 0:04:53.3]} 4... Bf5 {[%clk 0:04:54.4]} 5. Ng3 {[%clk 0:04:52.1]}
5... Bg6 {[%clk 0:04:47.4]} 6. h4 {[%clk 0:04:51.3]} 6... h6 {[%clk 0:04:38.3]}
7. h5 {[%clk 0:04:49.2]} 7... Bh7 {[%clk 0:04:37.1]} 8. Nf3 {[%clk 0:04:49.1]}
8... Nf6 {[%clk 0:04:35.9]} 9. Bd3 {[%clk 0:04:47.8]} 9... Bxd3 {[%clk
0:04:31.7]} 10. Qxd3 {[%clk 0:04:47.7]} 10... e6 {[%clk 0:04:31.1]} 11. Bd2
{[%clk 0:04:34]} 11... Qb6 {[%clk 0:04:28.1]} 12. O-O-O {[%clk 0:04:32]} 12...
c5 {[%clk 0:04:27]} 13. dxc5 {[%clk 0:04:09.2]} 13... Bxc5 {[%clk 0:04:24.7]}
14. Bc3 {[%clk 0:04:04.3]} 14... O-O {[%clk 0:04:13.5]} 15. Bxf6 {[%clk
0:03:43.2]} 15... gxf6 {[%clk 0:04:11.2]} 16. Ne4 {[%clk 0:03:43.1]} 16... f5
{[%clk 0:03:43.1]} 17. Nxc5 {[%clk 0:03:27.1]} 17... Qxc5 {[%clk 0:03:41.3]} 18.
Rh3 {[%clk 0:03:25.2]} 18... Nc6 {[%clk 0:03:39]} 19. Rg3+ {[%clk 0:03:23]}
19... Kh7 {[%clk 0:03:34]} 20. Nd4 {[%clk 0:03:15.2]} 20... Rfd8 {[%clk
0:03:22.5]} 21. Qc3 {[%clk 0:02:46.3]} 21... Nxd4 {[%clk 0:02:38.8]} 22. Qd3
{[%clk 0:00:49.6]} 22... Rac8 {[%clk 0:02:11.1]} 23. c3 {[%clk 0:00:48.5]} 23...
Nb3+ {[%clk 0:01:51.4]} 24. axb3 {[%clk 0:00:48.4]} 24... Rxd3 {[%clk
0:01:49.7]} 25. Rgxd3 {[%clk 0:00:48.3]} 25... Qxf2 {[%clk 0:01:45.6]} 26. Rd7
{[%clk 0:00:46.9]} 26... Qe3+ {[%clk 0:01:18.1]} 27. Kb1 {[%clk 0:00:44.4]}
27... Qe4+ {[%clk 0:01:14.8]} 28. Ka2 {[%clk 0:00:35]} 28... Kg7 {[%clk
0:00:58.1]} 29. g4 {[%clk 0:00:25.3]} 29... Qxg4 {[%clk 0:00:54]} 30. Rxb7
{[%clk 0:00:23.5]} 30... Qxd1 {[%clk 0:00:50.6]} 31. Rxa7 {[%clk 0:00:22.2]}
31... Qxh5 {[%clk 0:00:48.2]} 32. b4 {[%clk 0:00:21.1]} 32... Qf3 {[%clk
0:00:46.4]} 33. b5 {[%clk 0:00:20.2]} 33... Ra8 {[%clk 0:00:45.2]} 34. Ra6
{[%clk 0:00:18.4]} 34... Qd5+ {[%clk 0:00:39.7]} 35. Ka3 {[%clk 0:00:14.5]}
35... Qc5+ {[%clk 0:00:30.6]} 36. b4 {[%clk 0:00:13.5]} 36... Qxc3+ {[%clk
0:00:29.2]} 37. Ka4 {[%clk 0:00:13.4]} 37... Qa1+ {[%clk 0:00:25.9]} 38. Kb3
{[%clk 0:00:12.2]} 38... Rxa6 {[%clk 0:00:25]} 39. bxa6 {[%clk 0:00:12.1]} 39...
Qxa6 {[%clk 0:00:23.9]} 40. Kc3 {[%clk 0:00:11.3]} 40... Kf6 {[%clk 0:00:22.2]}
41. Kd4 {[%clk 0:00:10.6]} 41... e5+ {[%clk 0:00:21.2]} 42. Kc5 {[%clk
0:00:10.5]} 42... Ke6 {[%clk 0:00:19.7]} 43. b5 {[%clk 0:00:10.4]} 43... Qa3+
{[%clk 0:00:18.2]} 44. Kc6 {[%clk 0:00:09.2]} 44... Qd6+ {[%clk 0:00:14.2]} 45.
Kb7 {[%clk 0:00:08.2]} 45... e4 {[%clk 0:00:12.7]} 46. Ka7 {[%clk 0:00:07.5]}
46... Qc7+ {[%clk 0:00:10.7]} 47. Ka6 {[%clk 0:00:06.5]} 47... e3 {[%clk
0:00:09.5]} 48. b6 {[%clk 0:00:06.4]} 48... Qc6 {[%clk 0:00:08.6]} 49. Ka7
{[%clk 0:00:05.7]} 49... Qa4+ {[%clk 0:00:06.4]} 50. Kb7 {[%clk 0:00:04.9]}
50... e2 {[%clk 0:00:03.5]} 51. Kc7 {[%clk 0:00:04.8]} 51... e1=Q {[%clk
0:00:01]} 52. b7 {[%clk 0:00:04.7]} 1-0

[Event "Live Chess"]
[Site "Chess.com"]
[Date "2024.06.02"]
[Round "-"]
[White "WorcesterYork"]
[Black "Brooms1989"]
[Result "1-0"]
[WhiteElo "2485"]
[BlackElo "1176"]
[TimeControl "300"]
[EndTime "2:35:11 PDT"]
[Termination "WorcesterYork won by resignation"]

1. e4 {[%clk 0:04:58.5]} 1... e5 {[%clk 0:04:56.4]} 2. Nf3 {[%clk 0:04:56.8]}
2... Nc6 {[%clk 0:04:53]} 3. Bc4 {[%clk 0:04:55.8]} 3... Nf6 {[%clk 0:04:51.5]}
4. d4 {[%clk 0:04:53.6]} 4... exd4 {[%clk 0:04:49.9]} 5. O-O {[%clk 0:04:52]}
5... Bc5 {[%clk 0:04:47.5]} 6. e5 {[%clk 0:04:47.5]} 6... d5 {[%clk 0:04:45.8]}
7. exf6 {[%clk 0:04:46.2]} 7... dxc4 {[%clk 0:04:44.5]} 8. Re1+ {[%clk
0:04:36.1]} 8... Be6 {[%clk 0:04:40.6]} 9. fxg7 {[%clk 0:04:30]} 9... Rg8 {[%clk
0:04:38.1]} 10. Bg5 {[%clk 0:04:22.1]} 10... Qd7 {[%clk 0:04:25.7]} 11. Bf6
{[%clk 0:04:17.8]} 11... Be7 {[%clk 0:04:21.3]} 12. Bxe7 {[%clk 0:04:14.5]}
12... Qxe7 {[%clk 0:04:08.7]} 13. Nxd4 {[%clk 0:03:57]} 13... O-O-O {[%clk
0:03:41.8]} 14. Nxc6 {[%clk 0:03:51.3]} 14... bxc6 {[%clk 0:03:25.8]} 15. Qe2
{[%clk 0:03:43.9]} 15... Rxg7 {[%clk 0:03:07.2]} 16. Nd2 {[%clk 0:03:42.9]}
16... Rdg8 {[%clk 0:03:03.1]} 17. g3 {[%clk 0:03:39.2]} 17... Qh4 {[%clk
0:02:48.5]} 18. Nf3 {[%clk 0:03:30.3]} 18... Qf6 {[%clk 0:02:20.6]} 19. Ne5
{[%clk 0:03:00.7]} 19... Bd5 {[%clk 0:02:04.5]} 20. Nxc4 {[%clk 0:02:44.3]}
20... Qh6 {[%clk 0:01:10.3]} 21. Ne3 {[%clk 0:02:40.4]} 21... Be6 {[%clk
0:00:42.1]} 22. Qa6+ {[%clk 0:02:32.8]} 22... Kb8 {[%clk 0:00:37.1]} 23. Qxc6
{[%clk 0:02:31.3]} 1-0

[Event "Live Chess"]
[Site "Chess.com"]
[Date "2024.06.02"]
[Round "-"]
[White "TheSmoulderingMaster"]
[Black "ClassyChameleon"]
[Result "1-0"]
[WhiteElo "1783"]
[BlackElo "1518"]
[TimeControl "300"]
[EndTime "2:35:57 PDT"]
[Termination "TheSmoulderingMaster won on time"]

1. e4 {[%clk 0:04:57.7]} 1... e5 {[%clk 0:04:57.4]} 2. Nf3 {[%clk 0:04:56.5]}
2... Nc6 {[%clk 0:04:56]} 3. Bb5 {[%clk 0:04:54.8]} 3... a6 {[%clk 0:04:54.6]}
4. Ba4 {[%clk 0:04:53.7]} 4... b5 {[%clk 0:04:53.8]} 5. Bb3 {[%clk 0:04:52.7]}
5... Bb7 {[%clk 0:04:53.2]} 6. O-O {[%clk 0:04:50.4]} 6... g6 {[%clk 0:04:50.6]}
7. c3 {[%clk 0:04:49]} 7... Bg7 {[%clk 0:04:49.8]} 8. d4 {[%clk 0:04:48.1]} 8...
exd4 {[%clk 0:04:48.3]} 9. cxd4 {[%clk 0:04:46.9]} 9... Qe7 {[%clk 0:04:44.5]}
10. Ng5 {[%clk 0:04:43.7]} 10... Nxd4 {[%clk 0:04:31.3]} 11. Bxf7+ {[%clk
0:04:37.5]} 11... Kd8 {[%clk 0:04:21.1]} 12. Nc3 {[%clk 0:04:30.7]} 12... Nh6
{[%clk 0:03:51.7]} 13. Bd5 {[%clk 0:04:24.4]} 13... Bxd5 {[%clk 0:03:49.3]} 14.
Nxd5 {[%clk 0:04:22.1]} 14... Qf8 {[%clk 0:03:32.7]} 15. Be3 {[%clk 0:03:59.3]}
15... c5 {[%clk 0:03:21]} 16. Qd2 {[%clk 0:03:50.2]} 16... Ng4 {[%clk
0:03:12.5]} 17. Qa5+ {[%clk 0:03:45.5]} 17... Ke8 {[%clk 0:02:57.7]} 18. Nc7+
{[%clk 0:03:41]} 18... Ke7 {[%clk 0:02:54.2]} 19. Nxa8 {[%clk 0:03:39]} 19...
Qxa8 {[%clk 0:02:51.2]} 20. Bxd4 {[%clk 0:03:37.7]} 20... Bxd4 {[%clk
0:02:48.5]} 21. Rae1 {[%clk 0:03:20.3]} 21... h6 {[%clk 0:02:41.8]} 22. Nf3
{[%clk 0:03:16.8]} 22... Rf8 {[%clk 0:02:26]} 23. Nxd4 {[%clk 0:03:05.1]} 23...
cxd4 {[%clk 0:02:25.9]} 24. Qb6 {[%clk 0:03:01.7]} 24... d3 {[%clk 0:01:59.2]}
25. Qxg6 {[%clk 0:02:48.9]} 25... Rg8 {[%clk 0:01:38.1]} 26. Qh7+ {[%clk
0:02:44.4]} 26... Kd6 {[%clk 0:01:28.4]} 27. Rd1 {[%clk 0:02:39.3]} 27... Ne5
{[%clk 0:01:22.6]} 28. Qxh6+ {[%clk 0:02:34.4]} 28... Kc7 {[%clk 0:01:21.6]} 29.
Qf6 {[%clk 0:02:25.6]} 29... Qxe4 {[%clk 0:01:13.3]} 30. f3 {[%clk 0:02:14.6]}
30... Qe3+ {[%clk 0:00:59.9]} 31. Kh1 {[%clk 0:02:11.7]} 31... Nc4 {[%clk
0:00:54.8]} 32. Qf5 {[%clk 0:01:59.2]} 32... d2 {[%clk 0:00:44.1]} 33. b3 {[%clk
0:01:43]} 33... Qe2 {[%clk 0:00:19.5]} 34. Qh3 {[%clk 0:01:37.9]} 34... Ne3
{[%clk 0:00:17.4]} 35. Rg1 {[%clk 0:01:20.8]} 35... Nxd1 {[%clk 0:00:14.7]} 36.
Qg3+ {[%clk 0:01:08.2]} 36... Rxg3 {[%clk 0:00:11.7]} 37. hxg3 {[%clk
0:01:07.4]} 37... Nf2+ {[%clk 0:00:09.4]} 38. Kh2 {[%clk 0:01:06.6]} 38... d1=Q
{[%clk 0:00:07.5]} 39. Rxd1 {[%clk 0:01:04.1]} 39... Qxd1 {[%clk 0:00:07.4]} 40.
g4 {[%clk 0:01:02.5]} 40... a5 {[%clk 0:00:03.2]} 41. Kg3 {[%clk 0:01:01]} 41...
Nd3 {[%clk 0:00:01.8]} 42. g5 {[%clk 0:00:59.2]} 42... Qe1+ {[%clk 0:00:00.9]}
43. Kg4 {[%clk 0:00:57.2]} 1-0